[Event "3rd FIDE WCCC Blitz U10 2019"]
[Site "Minsk"]
[Date "2019.08.18"]
[Round "2.5"]
[White "Patapovich, Mitrafan"]
[Black "Vetokhin, Savva"]
[Result "1/2-1/2"]
[ECO "B56"]
[WhiteElo "1282"]
[BlackElo "2016"]
[Annotator "NA"]
[PlyCount "127"]
[EventDate "2019.08.18"]
[EventType "swiss"]
[EventCountry "BLR"]
[SourceTitle "playchess.com"]
[Source "ChessBase"]
[SourceQuality "1"]
[TimeControl "300+2"]

1. e4 {[%emt 0:00:00]} c5 {[%emt 0:00:00]} 2. Nf3 Nc6 {[%emt 0:00:00]} 3. d4 {[%emt 0:00:00]} cxd4 4. Nxd4 {[%emt 0:00:01]} Nf6 {[%emt 0:00:00]} 5. Nc3 d6 6. Be3 {[%emt 0:00:04]} Ng4 {[%emt 0:00:01]} 7. Bd3 {[%emt 0:00:05]} Nxe3 {[%emt 0:00:01]} 8. fxe3 {[%emt 0:00:02]} g6 {[%emt 0:00:02]} 9. O-O {[%emt 0:00:03]} Bg7 {[%emt 0:00:01]} 10. Nxc6 {[%emt 0:00:07]} bxc6 {[%emt 0:00:01]} 11. Bc4 {[%emt 0:00:04]} O-O {[%emt 0:00:03]} 12. Qf3 {[%emt 0:00:02]} e6 {[%emt 0:00:13]} 13. Rad1 {[%emt 0:00:11]} Bxc3 {[%emt 0:00:04]} 14. bxc3 {[%emt 0:00:01]} Qe7 {[%emt 0:00:04]} 15. Qg3 {[%emt 0:00:07]} d5 {[%emt 0:00:03]} 16. exd5 {[%emt 0:00:02]} cxd5 {[%emt 0:00:04]} 17. Bd3 {[%emt 0:00:05]} Bb7 {[%emt 0:00:07]} 18. c4 {[%emt 0:00:03]} dxc4 {[%emt 0:00:11]} 19. Bxc4 {[%emt 0:00:01]} Qc5 {[%emt 0:00:04]} 20. Bb3 {[%emt 0:00:02]} Rad8 {[%emt 0:00:03]} 21. Qf4 {[%emt 0:00:23]} Qe7 {[%emt 0:00:15]} 22. Kh1 {[%emt 0:00:40]} Ba6 {[%emt 0:00:07]} 23. Rfe1 {[%emt 0:00:03]} Rxd1 {[%emt 0:00:08]} 24. Rxd1 {[%emt 0:00:01]} Rd8 {[%emt 0:00:01]} 25. Rxd8+ {[%emt 0:00:09]} Qxd8 {[%emt 0:00:01]} 26. Qd4 {[%emt 0:00:01]} Qa5 {[%emt 0:00:06]} 27. h3 {[%emt 0:00:11]} Bb7 {[%emt 0:00:17]} 28. Qf4 {[%emt 0:00:05]} Qe1+ {[%emt 0:00:04]} 29. Kh2 {[%emt 0:00:03]} Qc3 {[%emt 0:00:51]} 30. Qb8+ {[%emt 0:00:01]} Qc8 {[%emt 0:00:01]} 31. Qxa7 {[%emt 0:00:25]} Qc7+ {[%emt 0:00:01]} 32. Kg1 {[%emt 0:00:02]} Qc6 {[%emt 0:00:16]} 33. Qb8+ Kg7 34. Qe5+ {[%emt 0:00:07]} f6 {[%emt 0:00:04]} 35. Qg3 {[%emt 0:00:05]} e5 {[%emt 0:00:03]} 36. a4 {[%emt 0:00:17]} h5 {[%emt 0:00:07]} 37. Qf2 {[%emt 0:00:10]} g5 {[%emt 0:00:08]} 38. Qd2 {[%emt 0:00:10]} Kh6 {[%emt 0:00:04]} 39. Kh2 {[%emt 0:00:36]} f5 {[%emt 0:00:05]} 40. Kg1 {[%emt 0:00:05]} h4 {[%emt 0:00:07]} 41. Qf2 {[%emt 0:00:16]} Kg6 {[%emt 0:00:18]} 42. Qd2 {[%emt 0:00:11]} Kh5 {[%emt 0:00:09]} 43. Qf2 {[%emt 0:00:02]} Qe4 {[%emt 0:00:07]} 44. Qd2 {[%emt 0:00:18]} g4 {[%emt 0:00:06]} 45. Bf7+ {[%emt 0:00:02]} Kh6 {[%emt 0:00:07]} 46. Qd6+ {[%emt 0:00:02]} Kg7 {[%emt 0:00:02]} 47. Qg6+ {[%emt 0:00:02]} Kf8 {[%emt 0:00:00]} 48. Qg8+ {[%emt 0:00:05]} Ke7 {[%emt 0:00:01]} 49. Qe8+ {[%emt 0:00:01]} Kd6 {[%emt 0:00:02]} 50. Qe6+ {[%emt 0:00:03]} Kc5 {[%emt 0:00:01]} 51. Qe7+ {[%emt 0:00:04]} Kb6 {[%emt 0:00:02]} 52. Qd6+ {[%emt 0:00:03]} Bc6 {[%emt 0:00:04]} 53. Qd8+ {[%emt 0:00:08]} Ka6 {[%emt 0:00:11]} 54. Qd3+ {[%emt 0:00:04]} Qxd3 {[%emt 0:00:04]} 55. cxd3 {[%emt 0:00:01]} gxh3 {[%emt 0:00:11]} 56. gxh3 {[%emt 0:00:03]} Ka5 {[%emt 0:00:02]} 57. Kf2 {[%emt 0:00:27]} Kb4 {[%emt 0:00:03]} 58. Be6 {[%emt 0:00:04]} f4 {[%emt 0:00:01]} 59. exf4 {[%emt 0:00:04]} exf4 {[%emt 0:00:01]} 60. Bf5 {[%emt 0:00:02]} Kc3 {[%emt 0:00:05]} 61. Be4 {[%emt 0:00:04]} Bxa4 {[%emt 0:00:01]} 62. Kf3 {[%emt 0:00:01]} Bd7 {[%emt 0:00:06]} 63. Kxf4 {[%emt 0:00:13]} Bxh3 {[%emt 0:00:02]} 64. Kg5 {[%emt 0:00:01]} 1/2-1/2

[Event "3rd FIDE WCCC Blitz U10 2019"]
[Site "Minsk"]
[Date "2019.08.18"]
[Round "2.6"]
[White "Zimin, Artur"]
[Black "Korovko, Iakov"]
[Result "1/2-1/2"]
[ECO "D01"]
[WhiteElo "1672"]
[BlackElo "1373"]
[Annotator "NA"]
[PlyCount "119"]
[EventDate "2019.08.18"]
[EventType "swiss"]
[EventCountry "BLR"]
[SourceTitle "playchess.com"]
[Source "ChessBase"]
[SourceQuality "1"]
[TimeControl "300+2"]

1. d4 {[%emt 0:00:00]} Nf6 {[%emt 0:00:00]} 2. Nc3 {[%emt 0:00:01]} d5 {[%emt 0:00:03]} 3. Bg5 {[%emt 0:00:01]} Nbd7 {[%emt 0:00:04]} 4. f3 {[%emt 0:00:04]} h6 {[%emt 0:00:46]} 5. Bxf6 {[%emt 0:00:02]} Nxf6 {[%emt 0:00:02]} 6. e4 {[%emt 0:00:02]} e6 {[%emt 0:00:08]} 7. e5 {[%emt 0:00:08]} Nd7 {[%emt 0:00:04]} 8. f4 {[%emt 0:00:02]} c5 {[%emt 0:00:03]} 9. Nf3 {[%emt 0:00:01]} cxd4 {[%emt 0:00:18]} 10. Nxd4 {[%emt 0:00:02]} Bc5 {[%emt 0:00:19]} 11. Nb3 {[%emt 0:00:33]} O-O {[%emt 0:00:35]} 12. a3 {[%emt 0:00:15]} Qb6 {[%emt 0:00:46]} 13. Qf3 {[%emt 0:00:29]} f6 {[%emt 0:01:09]} 14. exf6 {[%emt 0:00:58]} Rxf6 {[%emt 0:00:04]} 15. Nxc5 {[%emt 0:00:40]} Nxc5 {[%emt 0:00:04]} 16. O-O-O {[%emt 0:00:05]} Bd7 {[%emt 0:00:06]} 17. Qg3 {[%emt 0:00:52]} Na4 {[%emt 0:00:12]} 18. Nxa4 {[%emt 0:00:18]} Bxa4 {[%emt 0:00:02]} 19. Bd3 {[%emt 0:00:20]} Rc8 {[%emt 0:00:10]} 20. Kb1 {[%emt 0:00:07]} Bb5 {[%emt 0:00:08]} 21. Rhf1 {[%emt 0:00:20]} Bxd3 {[%emt 0:00:03]} 22. Qxd3 {[%emt 0:00:01]} Qc5 {[%emt 0:00:06]} 23. c3 {[%emt 0:00:06]} Qc4 24. Qxc4 {[%emt 0:00:13]} Rxc4 {[%emt 0:00:05]} 25. g3 {[%emt 0:00:00]} Kf7 {[%emt 0:00:12]} 26. Rfe1 {[%emt 0:00:00]} Rc5 {[%emt 0:00:06]} 27. Rd3 {[%emt 0:00:04]} Kf8 {[%emt 0:00:10]} 28. Rde3 {[%emt 0:00:01]} Rc6 {[%emt 0:00:01]} 29. Ka2 {[%emt 0:00:03]} Ke7 {[%emt 0:00:01]} 30. Re5 {[%emt 0:00:02]} Kd7 {[%emt 0:00:01]} 31. Kb1 {[%emt 0:00:04]} Rc4 {[%emt 0:00:02]} 32. Kc2 {[%emt 0:00:02]} a5 {[%emt 0:00:01]} 33. b3 {[%emt 0:00:02]} Rc6 {[%emt 0:00:02]} 34. Kd3 {[%emt 0:00:02]} Kd6 {[%emt 0:00:02]} 35. R5e2 {[%emt 0:00:04]} b5 {[%emt 0:00:02]} 36. a4 {[%emt 0:00:03]} bxa4 37. bxa4 {[%emt 0:00:00]} Rb6 {[%emt 0:00:06]} 38. Rc2 {[%emt 0:00:02]} Kc5 {[%emt 0:00:01]} 39. Rec1 {[%emt 0:00:03]} Rf8 {[%emt 0:00:03]} 40. c4 {[%emt 0:00:01]} Rb3+ {[%emt 0:00:02]} 41. Rc3 {[%emt 0:00:01]} Rfb8 {[%emt 0:00:03]} 42. cxd5+ {[%emt 0:00:01]} Kxd5 {[%emt 0:00:02]} 43. R1c2 {[%emt 0:00:06]} Rxc3+ {[%emt 0:00:02]} 44. Rxc3 {[%emt 0:00:00]} Rb4 {[%emt 0:00:01]} 45. Rc7 {[%emt 0:00:03]} Rxa4 {[%emt 0:00:02]} 46. Rd7+ {[%emt 0:00:01]} Kc5 {[%emt 0:00:03]} 47. Rxg7 {[%emt 0:00:01]} Ra2 {[%emt 0:00:04]} 48. Rc7+ {[%emt 0:00:03]} Kb6 {[%emt 0:00:01]} 49. Re7 {[%emt 0:00:02]} Rxh2 {[%emt 0:00:04]} 50. Rxe6+ {[%emt 0:00:01]} Kc5 {[%emt 0:00:04]} 51. Re5+ {[%emt 0:00:01]} Kb4 {[%emt 0:00:00]} 52. Re4+ {[%emt 0:00:02]} Kb3 {[%emt 0:00:02]} 53. Re6 {[%emt 0:00:03]} a4 {[%emt 0:00:01]} 54. Rb6+ {[%emt 0:00:01]} Ka2 {[%emt 0:00:02]} 55. Rb4 {[%emt 0:00:03]} a3 {[%emt 0:00:02]} 56. f5 {[%emt 0:00:05]} Rb2 {[%emt 0:00:01]} 57. Ra4 {[%emt 0:00:02]} Rb3+ {[%emt 0:00:05]} 58. Ke4 {[%emt 0:00:01]} Kb2 {[%emt 0:00:01]} 59. f6 {[%emt 0:00:01]} a2 {[%emt 0:00:02]} 60. Kf5 {[%emt 0:00:04]} 1/2-1/2

[Event "3rd FIDE WCCC Blitz U10 2019"]
[Site "Minsk"]
[Date "2019.08.18"]
[Round "3.1"]
[White "Usov, Aleksandr E."]
[Black "Slepchuk, Danylo"]
[Result "*"]
[ECO "B22"]
[WhiteElo "1919"]
[BlackElo "1501"]
[Annotator "NA"]
[PlyCount "35"]
[EventDate "2019.08.18"]
[EventType "swiss"]
[EventCountry "BLR"]
[SourceTitle "playchess.com"]
[Source "ChessBase"]
[SourceQuality "1"]
[TimeControl "300+2"]

1. e4 {[%emt 0:00:00]} c5 2. c3 e6 {[%emt 0:00:03]} 3. d4 {[%emt 0:00:00]} cxd4 {[%emt 0:00:03]} 4. cxd4 {[%emt 0:00:00]} d5 {[%emt 0:00:02]} 5. exd5 {[%emt 0:00:01]} exd5 {[%emt 0:00:03]} 6. Nc3 {[%emt 0:00:00]} Nf6 {[%emt 0:00:04]} 7. Nf3 {[%emt 0:00:01]} Be7 {[%emt 0:00:04]} 8. Bb5+ {[%emt 0:00:02]} Bd7 {[%emt 0:00:02]} 9. Bxd7+ {[%emt 0:00:04]} Nbxd7 {[%emt 0:00:03]} 10. O-O {[%emt 0:00:02]} O-O {[%emt 0:00:04]} 11. Ne5 {[%emt 0:00:03]} Rc8 {[%emt 0:00:06]} 12. f4 {[%emt 0:00:05]} Re8 {[%emt 0:00:06]} 13. Be3 {[%emt 0:00:06]} Bb4 {[%emt 0:00:06]} 14. Qb3 {[%emt 0:00:05]} Bxc3 {[%emt 0:00:04]} 15. bxc3 {[%emt 0:00:02]} Qb6 {[%emt 0:00:15]} 16. Rab1 {[%emt 0:00:28]} Red8 {[%emt 0:00:54]} 17. Nxd7 {[%emt 0:00:12]} Nxd7 {[%emt 0:00:02]} 18. Qxd5 {[%emt 0:00:02]} *

[Event "3rd FIDE WCCC Blitz U10 2019"]
[Site "Minsk"]
[Date "2019.08.18"]
[Round "3.2"]
[White "Pustovit, Maksym"]
[Black "Samunenkov, Ihor"]
[Result "*"]
[ECO "B03"]
[WhiteElo "1483"]
[BlackElo "1964"]
[Annotator "NA"]
[PlyCount "20"]
[EventDate "2019.08.18"]
[EventType "swiss"]
[EventCountry "BLR"]
[SourceTitle "playchess.com"]
[Source "ChessBase"]
[SourceQuality "1"]
[TimeControl "300+2"]

1. e4 {[%emt 0:00:00]} Nf6 {[%emt 0:00:00]} 2. e5 {[%emt 0:00:00]} Nd5 {[%emt 0:00:00]} 3. d4 {[%emt 0:00:01]} d6 {[%emt 0:00:01]} 4. c4 {[%emt 0:00:02]} Nb6 {[%emt 0:00:01]} 5. Nf3 {[%emt 0:00:02]} g6 {[%emt 0:00:25]} 6. Nc3 {[%emt 0:00:11]} Bg7 {[%emt 0:00:01]} 7. exd6 {[%emt 0:00:04]} cxd6 {[%emt 0:00:01]} 8. Bd3 {[%emt 0:00:06]} O-O {[%emt 0:00:11]} 9. O-O {[%emt 0:00:06]} Nc6 {[%emt 0:01:06]} 10. Be3 {[%emt 0:00:12]} d5 {[%emt 0:00:43]} *

[Event "3rd FIDE WCCC Blitz U10 2019"]
[Site "Minsk"]
[Date "2019.08.18"]
[Round "3.3"]
[White "Vershinin, Igor"]
[Black "Gusev, Mikhail"]
[Result "*"]
[ECO "A00"]
[WhiteElo "2188"]
[BlackElo "1598"]
[Annotator "NA"]
[PlyCount "25"]
[EventDate "2019.08.18"]
[EventType "swiss"]
[EventCountry "BLR"]
[SourceTitle "playchess.com"]
[Source "ChessBase"]
[SourceQuality "1"]
[TimeControl "300+2"]

1. a3 {[%emt 0:00:00]} d5 {[%emt 0:00:02]} 2. Nf3 {[%emt 0:00:00]} c5 {[%emt 0:00:10]} 3. c4 {[%emt 0:00:00]} d4 {[%emt 0:00:11]} 4. b4 {[%emt 0:00:01]} cxb4 {[%emt 0:00:07]} 5. g3 {[%emt 0:00:04]} Nc6 {[%emt 0:00:08]} 6. d3 {[%emt 0:00:03]} e5 {[%emt 0:00:05]} 7. Bg2 {[%emt 0:00:01]} Nf6 {[%emt 0:00:05]} 8. O-O {[%emt 0:00:02]} Bf5 {[%emt 0:00:30]} 9. axb4 {[%emt 0:00:10]} Bxb4 {[%emt 0:00:03]} 10. Nxe5 {[%emt 0:00:20]} Nxe5 {[%emt 0:00:25]} 11. Qa4+ {[%emt 0:00:01]} Qd7 {[%emt 0:00:01]} 12. Qxb4 {[%emt 0:00:02]} Nc6 {[%emt 0:00:14]} 13. Qc5 {[%emt 0:00:07]} *

[Event "3rd FIDE WCCC Blitz U10 2019"]
[Site "Minsk"]
[Date "2019.08.18"]
[Round "3.4"]
[White "Tiulyagin, Matvey"]
[Black "Koshulyan, Egor A."]
[Result "*"]
[ECO "A45"]
[WhiteElo "1348"]
[BlackElo "1872"]
[Annotator "NA"]
[PlyCount "28"]
[EventDate "2019.08.18"]
[EventType "swiss"]
[EventCountry "BLR"]
[SourceTitle "playchess.com"]
[Source "ChessBase"]
[SourceQuality "1"]
[TimeControl "300+2"]

1. d4 {[%emt 0:00:00]} Nf6 {[%emt 0:00:00]} 2. Bf4 {[%emt 0:00:00]} d5 {[%emt 0:00:01]} 3. e3 {[%emt 0:00:00]} e6 {[%emt 0:00:06]} 4. Nf3 {[%emt 0:00:02]} Bd6 {[%emt 0:00:01]} 5. Bg3 {[%emt 0:00:02]} Nbd7 {[%emt 0:00:10]} 6. c3 {[%emt 0:00:01]} Qe7 {[%emt 0:00:03]} 7. Bd3 {[%emt 0:00:01]} O-O {[%emt 0:00:12]} 8. Nbd2 {[%emt 0:00:01]} c5 {[%emt 0:00:01]} 9. Ne5 {[%emt 0:00:05]} Rd8 {[%emt 0:00:36]} 10. f4 {[%emt 0:00:05]} Nf8 {[%emt 0:00:01]} 11. Bh4 {[%emt 0:00:06]} cxd4 {[%emt 0:00:47]} 12. exd4 {[%emt 0:00:06]} Ng6 {[%emt 0:00:01]} 13. Bg3 {[%emt 0:00:22]} Qc7 {[%emt 0:00:14]} 14. O-O {[%emt 0:00:03]} b6 {[%emt 0:00:02]} *

[Event "3rd FIDE WCCC Blitz U10 2019"]
[Site "Minsk"]
[Date "2019.08.18"]
[Round "3.5"]
[White "Zverev, Lev"]
[Black "Kuznetsov, Ivan V."]
[Result "*"]
[ECO "C77"]
[WhiteElo "1881"]
[BlackElo "1434"]
[Annotator "NA"]
[PlyCount "33"]
[EventDate "2019.08.18"]
[EventType "swiss"]
[EventCountry "BLR"]
[SourceTitle "playchess.com"]
[Source "ChessBase"]
[SourceQuality "1"]
[TimeControl "300+2"]

1. e4 {[%emt 0:00:00]} e5 {[%emt 0:00:00]} 2. Nf3 {[%emt 0:00:02]} Nc6 {[%emt 0:00:00]} 3. Bb5 {[%emt 0:00:01]} a6 {[%emt 0:00:01]} 4. Ba4 {[%emt 0:00:01]} Nf6 {[%emt 0:00:02]} 5. d3 {[%emt 0:00:01]} Be7 {[%emt 0:00:05]} 6. Bxc6 {[%emt 0:00:03]} dxc6 {[%emt 0:00:04]} 7. Nxe5 {[%emt 0:00:02]} O-O {[%emt 0:00:24]} 8. Nf3 {[%emt 0:00:01]} Bc5 {[%emt 0:00:34]} 9. O-O {[%emt 0:00:03]} Bg4 {[%emt 0:00:03]} 10. h3 {[%emt 0:00:04]} Bh5 {[%emt 0:00:04]} 11. Nbd2 {[%emt 0:00:02]} Re8 {[%emt 0:00:06]} 12. Re1 {[%emt 0:00:03]} Nd7 {[%emt 0:00:14]} 13. Nf1 {[%emt 0:00:16]} Ne5 {[%emt 0:00:07]} 14. g4 {[%emt 0:00:02]} Nxf3+ {[%emt 0:00:14]} 15. Qxf3 {[%emt 0:00:02]} Bg6 {[%emt 0:00:00]} 16. Ng3 {[%emt 0:00:03]} Bd6 {[%emt 0:00:27]} 17. Bf4 {[%emt 0:00:02]} *

[Event "3rd FIDE WCCC Blitz U10 2019"]
[Site "Minsk"]
[Date "2019.08.18"]
[Round "3.6"]
[White "Novozhilov, Semen"]
[Black "Tykheev, Aldar"]
[Result "*"]
[ECO "C41"]
[WhiteElo "1686"]
[BlackElo "1434"]
[Annotator "NA"]
[PlyCount "23"]
[EventDate "2019.08.18"]
[EventType "swiss"]
[EventCountry "BLR"]
[SourceTitle "playchess.com"]
[Source "ChessBase"]
[SourceQuality "1"]
[TimeControl "300+2"]

1. d4 {[%emt 0:00:00]} d6 {[%emt 0:00:00]} 2. e4 {[%emt 0:00:02]} Nf6 {[%emt 0:00:00]} 3. Nc3 {[%emt 0:00:01]} e5 {[%emt 0:00:08]} 4. Nf3 {[%emt 0:00:07]} Nbd7 {[%emt 0:00:02]} 5. Bc4 {[%emt 0:00:07]} Be7 {[%emt 0:00:01]} 6. O-O {[%emt 0:00:05]} O-O {[%emt 0:00:02]} 7. h3 {[%emt 0:00:04]} c6 {[%emt 0:00:02]} 8. a4 {[%emt 0:00:07]} a5 {[%emt 0:00:02]} 9. Be3 {[%emt 0:00:07]} Qc7 {[%emt 0:00:01]} 10. Qe2 {[%emt 0:00:15]} h6 {[%emt 0:00:22]} 11. Rfd1 {[%emt 0:00:04]} Re8 {[%emt 0:00:12]} 12. Bb3 {[%emt 0:00:45]} *

[Event "3rd FIDE WCCC Blitz U10 2019"]
[Site "Minsk"]
[Date "2019.08.18"]
[Round "4.1"]
[White "Pham, Tran Gia Phuc"]
[Black "Usov, Aleksandr E."]
[Result "0-1"]
[ECO "D19"]
[WhiteElo "1611"]
[BlackElo "1919"]
[Annotator "NA"]
[PlyCount "54"]
[EventDate "2019.08.18"]
[EventType "swiss"]
[EventCountry "BLR"]
[SourceTitle "playchess.com"]
[Source "ChessBase"]
[SourceQuality "1"]
[TimeControl "300+2"]

1. d4 {[%emt 0:00:00]} d5 {[%emt 0:00:00]} 2. c4 {[%emt 0:00:00]} c6 {[%emt 0:00:00]} 3. Nf3 {[%emt 0:00:00]} Nf6 {[%emt 0:00:00]} 4. Nc3 {[%emt 0:00:01]} dxc4 {[%emt 0:00:00]} 5. a4 {[%emt 0:00:00]} Bf5 {[%emt 0:00:01]} 6. e3 {[%emt 0:00:00]} e6 {[%emt 0:00:02]} 7. Bxc4 {[%emt 0:00:02]} Bb4 {[%emt 0:00:00]} 8. O-O {[%emt 0:00:01]} O-O {[%emt 0:00:02]} 9. Qe2 {[%emt 0:00:01]} Bg6 {[%emt 0:00:03]} 10. Ne5 {[%emt 0:00:02]} Nbd7 {[%emt 0:00:02]} 11. Nxg6 {[%emt 0:00:02]} hxg6 {[%emt 0:00:02]} 12. Rd1 {[%emt 0:00:01]} Nd5 {[%emt 0:00:01]} 13. Bd2 {[%emt 0:00:02]} Bd6 {[%emt 0:00:09]} 14. e4 {[%emt 0:00:04]} Nxc3 {[%emt 0:00:04]} 15. Bxc3 {[%emt 0:00:03]} Re8 {[%emt 0:00:12]} 16. Qc2 {[%emt 0:00:04]} Bc7 {[%emt 0:00:09]} 17. d5 {[%emt 0:00:21]} exd5 {[%emt 0:00:20]} 18. exd5 {[%emt 0:00:01]} Bxh2+ {[%emt 0:00:49]} 19. Kf1 {[%emt 0:00:01]} Qh4 {[%emt 0:00:32]} 20. Rd4 {[%emt 0:00:33]} Bf4 {[%emt 0:00:06]} 21. f3 {[%emt 0:00:37]} Qh1+ {[%emt 0:01:26]} 22. Kf2 {[%emt 0:00:00]} Qh2 {[%emt 0:00:01]} 23. Rxf4 {[%emt 0:01:51]} Qxf4 {[%emt 0:00:03]} 24. b3 {[%emt 0:00:03]} cxd5 {[%emt 0:00:05]} 25. Bxd5 {[%emt 0:00:01]} Nf6 {[%emt 0:00:18]} 26. Qxg6 {[%emt 0:00:30]} Ne4+ {[%emt 0:00:40]} 27. Kf1 {[%emt 0:01:24]} Nxc3 {[%emt 0:00:12]} 0-1

[Event "3rd FIDE WCCC Blitz U10 2019"]
[Site "Minsk"]
[Date "2019.08.18"]
[Round "4.2"]
[White "Samunenkov, Ihor"]
[Black "Giorgadze, Giorgi"]
[Result "1-0"]
[ECO "E09"]
[WhiteElo "1964"]
[BlackElo "1524"]
[Annotator "NA"]
[PlyCount "63"]
[EventDate "2019.08.18"]
[EventType "swiss"]
[EventCountry "BLR"]
[SourceTitle "playchess.com"]
[Source "ChessBase"]
[SourceQuality "1"]
[TimeControl "300+2"]

1. d4 {[%emt 0:00:00]} d5 {[%emt 0:00:00]} 2. Nf3 {[%emt 0:00:00]} Nf6 {[%emt 0:00:00]} 3. g3 {[%emt 0:00:01]} e6 {[%emt 0:00:01]} 4. Bg2 {[%emt 0:00:01]} Be7 {[%emt 0:00:03]} 5. c4 {[%emt 0:00:01]} c6 {[%emt 0:00:01]} 6. O-O {[%emt 0:00:03]} O-O {[%emt 0:00:02]} 7. Qc2 {[%emt 0:00:01]} Nbd7 {[%emt 0:00:02]} 8. Nbd2 {[%emt 0:00:02]} b6 {[%emt 0:00:01]} 9. e4 {[%emt 0:00:01]} dxe4 {[%emt 0:00:05]} 10. Nxe4 {[%emt 0:00:01]} Bb7 {[%emt 0:00:30]} 11. Rd1 {[%emt 0:00:11]} Nxe4 {[%emt 0:00:09]} 12. Qxe4 {[%emt 0:00:02]} Nf6 {[%emt 0:00:01]} 13. Qc2 {[%emt 0:00:06]} Qc7 {[%emt 0:00:49]} 14. b3 {[%emt 0:00:25]} Rfd8 {[%emt 0:00:34]} 15. Bb2 {[%emt 0:00:01]} c5 {[%emt 0:00:29]} 16. dxc5 {[%emt 0:00:39]} Qxc5 {[%emt 0:00:36]} 17. h3 {[%emt 0:01:23]} Be4 {[%emt 0:01:49]} 18. Qe2 {[%emt 0:00:13]} Bb7 {[%emt 0:00:12]} 19. Ne5 {[%emt 0:00:39]} Bxg2 {[%emt 0:00:04]} 20. Kxg2 {[%emt 0:00:02]} Qc7 {[%emt 0:00:06]} 21. Qf3 {[%emt 0:00:04]} Rxd1 {[%emt 0:00:03]} 22. Rxd1 {[%emt 0:00:11]} Rd8 {[%emt 0:00:03]} 23. Rxd8+ {[%emt 0:00:13]} Bxd8 {[%emt 0:00:01]} 24. g4 {[%emt 0:00:11]} h6 {[%emt 0:00:01]} 25. h4 {[%emt 0:00:03]} Be7 {[%emt 0:00:02]} 26. g5 {[%emt 0:00:04]} hxg5 {[%emt 0:00:01]} 27. hxg5 {[%emt 0:00:01]} Ne8 {[%emt 0:00:01]} 28. Qxf7+ {[%emt 0:00:05]} Kh7 {[%emt 0:00:03]} 29. g6+ {[%emt 0:00:08]} Kh6 {[%emt 0:00:03]} 30. Qxe8 {[%emt 0:00:15]} Bf6 {[%emt 0:00:04]} 31. Bc1+ {[%emt 0:00:09]} Bg5 {[%emt 0:00:02]} 32. Qh8# 1-0

[Event "3rd FIDE WCCC Blitz U10 2019"]
[Site "Minsk"]
[Date "2019.08.18"]
[Round "4.3"]
[White "Simbelov, Roman T."]
[Black "Vershinin, Igor"]
[Result "0-1"]
[ECO "B33"]
[WhiteElo "1603"]
[BlackElo "2188"]
[Annotator "NA"]
[PlyCount "76"]
[EventDate "2019.08.18"]
[EventType "swiss"]
[EventCountry "BLR"]
[SourceTitle "playchess.com"]
[Source "ChessBase"]
[SourceQuality "1"]
[TimeControl "300+2"]

1. e4 {[%emt 0:00:00]} c5 {[%emt 0:00:00]} 2. Nf3 {[%emt 0:00:01]} Nc6 {[%emt 0:00:00]} 3. d4 {[%emt 0:00:01]} cxd4 {[%emt 0:00:00]} 4. Nxd4 Nf6 {[%emt 0:00:00]} 5. Nc3 {[%emt 0:00:01]} e5 {[%emt 0:00:00]} 6. Ndb5 {[%emt 0:00:02]} d6 {[%emt 0:00:02]} 7. Bg5 a6 8. Na3 b5 9. Bxf6 {[%emt 0:00:16]} gxf6 {[%emt 0:00:03]} 10. Nd5 {[%emt 0:00:01]} Bg7 {[%emt 0:00:02]} 11. c4 {[%emt 0:00:08]} bxc4 {[%emt 0:00:35]} 12. Nxc4 {[%emt 0:00:10]} O-O {[%emt 0:00:11]} 13. Bd3 {[%emt 0:00:07]} Nd4 {[%emt 0:00:00]} 14. O-O {[%emt 0:00:12]} Be6 {[%emt 0:00:02]} 15. Nce3 {[%emt 0:00:11]} Rb8 {[%emt 0:00:14]} 16. b3 {[%emt 0:00:05]} Re8 {[%emt 0:00:16]} 17. Qd2 {[%emt 0:00:21]} f5 {[%emt 0:00:17]} 18. Rac1 {[%emt 0:00:38]} Bxd5 {[%emt 0:00:15]} 19. Nxd5 {[%emt 0:00:19]} fxe4 {[%emt 0:00:02]} 20. Bxe4 {[%emt 0:00:05]} f5 {[%emt 0:00:02]} 21. Bb1 {[%emt 0:00:11]} e4 {[%emt 0:00:28]} 22. Rfd1 {[%emt 0:00:35]} Rc8 {[%emt 0:00:32]} 23. Rxc8 {[%emt 0:00:07]} Qxc8 {[%emt 0:00:01]} 24. Qg5 {[%emt 0:00:10]} Qd8 {[%emt 0:00:20]} 25. Qxd8 {[%emt 0:00:29]} Rxd8 {[%emt 0:00:02]} 26. Kf1 {[%emt 0:00:16]} Kf7 {[%emt 0:00:07]} 27. b4 {[%emt 0:00:25]} Rc8 {[%emt 0:00:13]} 28. a3 {[%emt 0:00:08]} Ke6 {[%emt 0:00:14]} 29. Nb6 {[%emt 0:00:49]} Rc6 {[%emt 0:00:10]} 30. Ba2+ {[%emt 0:00:01]} Ke5 {[%emt 0:00:27]} 31. Nd7+ {[%emt 0:00:05]} Kf4 {[%emt 0:00:02]} 32. g3+ {[%emt 0:00:03]} Kg5 {[%emt 0:00:01]} 33. Nb8 {[%emt 0:00:04]} Rc2 {[%emt 0:00:08]} 34. Bd5 {[%emt 0:00:02]} Nf3 {[%emt 0:00:12]} 35. h4+ {[%emt 0:00:02]} Kg4 {[%emt 0:00:02]} 36. Kg2 {[%emt 0:00:02]} Bd4 {[%emt 0:00:04]} 37. Nd7 Rxf2+ {[%emt 0:00:02]} 38. Kh1 {[%emt 0:00:04]} Rh2# {[%emt 0:00:01]} 0-1